bitfinex/quotes_SOLUSD_20260228
["timestamp","ask_amount","ask_price","bid_price","bid_amount"]
[1772265237198,1.26671237,78.851,78.83,17.22808486]
[1772265237421,1.26671237,78.851,78.821,1.22104615]
[1772265237917,1.26671237,78.851,78.823,1.22104615]
[1772265239021,17.22808486,78.88,78.841,1.22104615]
[1772265239205,0.14216157,78.879,78.841,1.22104615]
[1772265239414,0.14216157,78.859,78.823,1.22104615]
[1772265239598,0.28432314,78.859,78.823,1.22104615]
[1772265239798,0.28432314,78.859,78.822,12.68681332]
[1772265240017,0.28432314,78.859,78.82,17.32808486]
[1772265240018,0.28432314,78.849,78.82,0.1]
[1772265240214,0.28432314,78.849,78.821,12.68697428]
[1772265240417,0.28432314,78.849,78.822,1.22104615]
[1772265240615,0.28432314,78.857,78.822,1.22104615]
[1772265240815,17.22808486,78.87,78.831,1.22104615]
[1772265241005,31.69486354,78.878,78.831,1.22104615]
[1772265241006,0.47265784,78.876,78.831,1.22104615]
[1772265241426,0.47265784,78.876,78.841,1.22104615]
[1772265241923,0.47265784,78.876,78.82,0.1]
[1772265241924,17.22808486,78.89,78.853,1.22104615]
[1772265242131,6.61679127,78.931,78.869,1.22104615]
[1772265242132,17.69836419,78.9,78.869,1.22104615]
[1772265242721,0.46792814,78.899,78.869,1.22104615]
[1772265242927,0.46792814,78.899,78.852,44.38695276]
[1772265242928,0.46792814,78.919,78.881,1.22104615]
[1772265243901,0.46560395,78.917,78.882,13.8982095]
[1772265244103,0.46560395,78.925,78.891,1.22104615]
[1772265244709,12.66961446,78.929,78.901,1.22104615]
[1772265244913,13.12423203,78.929,78.901,1.22104615]
[1772265245234,0.45461757,78.926,78.892,1.22104615]
[1772265245601,0.28432314,78.925,78.892,1.22104615]
[1772265245806,0.45461757,78.926,78.892,1.22104615]
[1772265246326,0.14216157,78.925,78.901,1.22104615]
[1772265247413,0.28432314,78.928,78.901,1.22104615]
[1772265248124,0.28432314,78.926,78.901,1.22104615]
[1772265249403,13.08329993,78.918,78.888,1.22104615]
[1772265249812,13.08329993,78.918,78.889,1.22104615]
[1772265250503,31.67403615,78.929,78.888,12.67615125]
[1772265250504,12.66971418,78.929,78.9,17.22808486]
[1772265250709,12.66971418,78.929,78.901,1.21107333]
[1772265251115,0.38116616,78.928,78.891,1.21107333]
[1772265251612,12.66993551,78.927,78.893,1.21107333]
[1772265252731,0.38116616,78.928,78.893,1.21107333]
[1772265253024,0.28432314,78.927,78.893,1.21107333]
[1772265254330,0.28432314,78.925,78.895,1.21107333]
[1772265255613,12.67041711,78.924,78.897,1.21107333]
[1772265255816,0.33222084,78.923,78.897,1.21107333]
[1772265256014,0.33222084,78.904,78.861,1.21107333]
[1772265256229,17.22808486,78.91,78.81,0.2]
[1772265256230,0.28432314,78.886,78.857,1.21107333]
[1772265256420,17.22808486,78.88,78.841,1.21107333]
[1772265257137,0.28432314,78.886,78.851,1.21107333]
[1772265257513,0.28432314,78.887,78.851,1.21107333]
[1772265257709,0.28432314,78.887,78.853,1.21107333]
[1772265258029,12.6758525,78.891,78.861,1.21107333]
[1772265258451,12.81725074,78.895,78.861,1.21107333]
[1772265258731,0.28432314,78.895,78.861,1.21107333]
[1772265259817,12.67523512,78.894,78.861,1.21107333]
[1772265260135,12.67282565,78.909,78.871,1.21107333]
[1772265260332,0.14216157,78.908,78.871,1.21107333]
[1772265260526,0.14216157,78.908,78.881,1.21107333]
[1772265260928,12.67159513,78.917,78.881,1.21107333]
[1772265261229,17.22808486,78.93,78.891,1.21107333]
[1772265261435,12.66961446,78.929,78.901,1.21107333]
[1772265261636,0.2770989,78.928,78.901,1.21107333]
[1772265261819,12.66993551,78.927,78.901,1.21107333]
[1772265264624,12.66993551,78.927,78.901,13.88506723]
[1772265264823,12.66993551,78.927,78.902,1.21107333]
[1772265264824,0.28432314,78.926,78.902,1.21107333]
[1772265266142,0.28432314,78.93,78.902,1.21107333]
[1772265266824,6.61097096,78.931,78.904,1.21107333]
[1772265267028,6.61097096,78.931,78.903,12.67378933]
[1772265267029,12.66848509,78.937,78.911,1.21107333]
[1772265267248,0.14216157,78.936,78.911,1.21107333]
[1772265267823,0.28432314,78.936,78.911,1.21107333]
[1772265268033,0.22566831,78.955,78.931,1.21107333]
[1772265268034,12.66560275,78.954,78.931,1.21107333]
[1772265268824,12.66480071,78.959,78.931,1.21107333]
[1772265269251,0.14216157,78.958,78.931,1.21107333]
[1772265269454,0.28432314,78.958,78.931,1.21107333]
[1772265269636,0.14216157,78.958,78.931,1.21107333]
[1772265270227,0.28432314,78.958,78.931,1.21107333]
[1772265270947,0.28432314,78.956,78.931,1.21107333]
[1772265271744,0.28432314,78.952,78.921,1.21107333]
[1772265271945,0.28432314,78.952,78.827,38.1]
[1772265271946,17.22808486,78.93,78.88,17.22808486]
[1772265272129,17.22808486,78.92,78.88,17.22808486]
[1772265272331,17.22808486,78.91,78.87,17.22808486]
[1772265272947,0.19330923,78.939,78.881,12.67732407]
[1772265272948,12.67121985,78.919,78.881,12.67732407]
[1772265274032,1.21427842,78.918,78.884,1.21107333]
[1772265274657,13.88452327,78.926,78.891,1.21107333]
[1772265275247,1.21427842,78.925,78.891,1.21107333]
[1772265276155,12.95474025,78.924,78.893,1.21107333]
[1772265276643,1.21427842,78.923,78.893,1.21107333]
[1772265278237,1.21427842,78.923,78.892,12.67555645]
[1772265278238,1.21427842,78.934,78.901,1.21107333]
[1772265278842,63.32423696,78.959,78.886,1.21107333]
[1772265278843,1.21427842,78.929,78.886,1.21107333]
[1772265279034,1.21427842,78.923,78.891,1.21107333]
[1772265280754,13.72844133,78.922,78.893,1.06800301]
[1772265282751,1.05770314,78.922,78.895,1.14090227]
[1772265283154,13.7284871,78.922,78.895,1.14090227]
[1772265284259,12.67078396,78.922,78.897,1.14090227]
[1772265284455,0.28432314,78.932,78.901,1.14090227]
[1772265285039,1.0355963,78.931,78.901,1.14090227]
[1772265286156,1.0355963,78.931,78.9,17.22808486]
[1772265286157,1.0355963,78.929,78.903,1.14090227]
[1772265286548,0.28432314,78.924,78.896,1.14090227]
[1772265286743,0.28432314,78.928,78.896,1.14090227]
[1772265286744,1.0355963,78.923,78.896,1.14090227]
[1772265288847,12.67073819,78.922,78.897,1.14090227]
[1772265290966,0.28432314,78.929,78.897,1.14090227]
[1772265291171,1.0355963,78.924,78.899,1.14090227]
[1772265292568,1.31991944,78.939,78.9,6.42131639]
[1772265292755,0.28432314,78.936,78.91,6.42131639]
[1772265293080,0.28432314,78.936,78.911,1.14090227]
[1772265293081,12.81065249,78.936,78.911,1.14090227]
[1772265293366,0.14216157,78.934,78.911,1.14090227]
[1772265293952,1.0355963,78.934,78.911,1.14090227]
[1772265294455,1.0355963,78.934,78.912,13.81324614]
[1772265294655,1.0355963,78.934,78.912,1.14090227]
[1772265296677,13.70456871,78.933,78.912,1.14090227]
[1772265296990,1.0355963,78.919,78.883,1.14090227]
[1772265297658,1.0355963,78.928,78.891,1.14090227]
[1772265297974,12.66897241,78.933,78.911,1.14090227]
[1772265298172,12.66897241,78.933,78.881,44.37063424]
[1772265298173,1.0355963,78.95,78.921,1.14090227]
[1772265298651,12.66680832,78.947,78.921,1.14090227]
[1772265300660,0.28432314,78.944,78.921,1.14090227]
[1772265301459,1.0355963,78.943,78.914,13.81285364]
[1772265301669,1.0355963,78.943,78.915,1.14090227]
[1772265302276,0.28432314,78.952,78.921,1.14090227]
[1772265302779,1.0355963,78.96,78.931,1.14090227]
[1772265302983,12.66500759,78.958,78.931,1.14090227]
[1772265303185,0.28432314,78.957,78.931,1.14090227]
[1772265304256,1.0355963,78.956,78.923,1.14090227]
[1772265304473,1.0355963,78.949,78.923,1.14090227]
[1772265304857,12.66656533,78.948,78.923,1.14090227]
[1772265306480,1.0355963,78.949,78.923,1.14090227]
[1772265307179,6.4177083,78.95,78.923,1.14090227]
[1772265307483,1.0355963,78.949,78.923,1.14090227]
[1772265307775,1.0355963,78.955,78.924,1.14090227]
[1772265307984,0.28432314,78.954,78.931,1.14090227]
[1772265308176,13.69972123,78.964,78.931,1.14090227]
[1772265308579,13.69972123,78.964,78.933,1.14090227]
[1772265309176,13.69966861,78.964,78.933,1.14090227]
[1772265310089,12.66407231,78.964,78.933,1.14090227]
[1772265310381,13.90140342,78.969,78.935,1.01435557]
[1772265310686,0.28432314,78.964,78.935,1.01435557]
[1772265312083,0.95388333,78.963,78.935,1.01435557]
[1772265312866,0.95388333,78.961,78.922,1.01435557]
[1772265313064,0.95388333,78.939,78.908,1.01435557]
[1772265313281,0.95388333,78.929,78.9,1.01435557]
[1772265313494,6.4177083,78.92,78.9,1.01435557]
[1772265314076,0.95388333,78.929,78.9,1.01435557]
[1772265314877,0.95388333,78.958,78.902,1.01435557]
[1772265315071,6.4177083,78.94,78.902,1.01435557]
[1772265315270,0.95388333,78.939,78.902,1.01435557]
[1772265315471,1.23820647,78.938,78.902,1.01435557]
[1772265315771,0.28432314,78.936,78.902,1.01435557]
[1772265316387,0.28432314,78.935,78.902,1.01435557]
[1772265317587,12.95308348,78.935,78.904,1.01435557]
[1772265317793,0.95388333,78.934,78.904,1.01435557]
[1772265318103,12.95308348,78.935,78.904,1.01435557]
[1772265318674,0.95388333,78.934,78.904,1.01435557]
[1772265319888,12.66897241,78.933,78.904,1.01435557]
[1772265321305,12.66897241,78.933,78.906,1.01435557]
[1772265321596,0.95388333,78.938,78.911,1.01435557]
[1772265322286,12.66833044,78.937,78.911,1.01435557]
[1772265322486,0.95388333,78.936,78.911,1.01435557]
[1772265322793,7.37159163,78.93,78.911,1.01435557]
[1772265323095,0.95388333,78.929,78.901,1.01435557]
[1772265323795,0.95388333,78.935,78.902,1.01435557]
[1772265324101,0.95388333,78.929,78.902,1.01435557]
[1772265324401,0.95388333,78.929,78.88,6.4177083]
[1772265324402,0.95388333,78.949,78.911,1.01435557]
[1772265325174,0.95388333,78.939,78.901,1.01435557]
[1772265325381,0.28432314,78.926,78.901,1.01435557]
[1772265325805,0.28432314,78.924,78.901,1.01435557]
[1772265326232,12.67057765,78.923,78.901,1.01435557]
[1772265326903,12.95403819,78.929,78.901,1.01435557]
[1772265327501,0.28432314,78.925,78.901,1.01435557]
[1772265328494,12.67041711,78.924,78.901,1.01435557]
[1772265328697,0.28432314,78.928,78.903,1.01435557]
[1772265328899,13.90802504,78.928,78.903,1.01435557]
[1772265329104,0.95388333,78.927,78.903,1.01435557]
[1772265330003,12.67009603,78.926,78.903,1.01435557]
[1772265330502,19.08722811,78.93,78.905,1.01435557]
[1772265331006,20.04111144,78.93,78.905,1.01435557]
[1772265332105,13.62340314,78.93,78.905,1.01435557]
[1772265332287,0.95388333,78.929,78.905,1.01435557]
[1772265332905,0.28432314,78.928,78.905,1.01435557]
[1772265334509,0.28432314,78.926,78.905,1.01435557]
[1772265336412,6.4177083,78.92,78.881,1.01435557]
[1772265336597,6.4177083,78.91,78.883,1.01435557]
[1772265337704,0.95388333,78.912,78.883,1.01435557]
[1772265338591,13.62628455,78.912,78.885,1.01435557]
[1772265338919,0.95388333,78.909,78.885,1.01435557]
[1772265340497,0.95388333,78.909,78.886,12.67652054]
[1772265340701,12.67240122,78.912,78.887,0.97409822]
[1772265341102,13.62635121,78.912,78.887,0.97409822]
[1772265342110,0.94730853,78.911,78.887,0.97409822]
[1772265343213,0.94730853,78.916,78.889,0.92649708]
[1772265343516,0.94730853,78.914,78.889,0.92649708]
[1772265344410,13.61949182,78.913,78.889,0.92649708]
[1772265344604,0.94730853,78.912,78.889,0.92649708]
[1772265345913,0.94730853,78.909,78.889,0.92649708]
[1772265346809,0.94730853,78.909,78.89,0.92649708]
[1772265347597,6.4177083,78.92,78.891,0.92649708]
[1772265347817,6.4177083,78.92,78.854,63.40773376]
[1772265347818,12.66717538,78.945,78.911,0.92649708]
[1772265348106,12.66717538,78.945,78.921,0.92649708]
[1772265348513,12.66496111,78.958,78.931,0.92649708]
[1772265349725,6.61204383,78.969,78.931,0.92649708]
[1772265349726,0.94730853,78.962,78.931,0.92649708]
[1772265350497,12.66447993,78.961,78.933,0.92649708]
[1772265350702,12.66447993,78.961,78.935,0.92649708]
[1772265350906,0.94730853,78.959,78.935,0.92649708]
[1772265351622,0.94730853,78.954,78.931,0.92649708]
[1772265352124,12.66576317,78.953,78.931,0.92649708]
[1772265354705,0.94497336,78.949,78.921,0.92649708]
[1772265354908,12.66576317,78.953,78.886,63.38184496]
[1772265354909,6.4177083,78.94,78.915,0.92649708]
[1772265356424,6.4177083,78.94,78.917,0.92649708]
[1772265356425,7.35967571,78.94,78.917,0.92649708]
[1772265358229,12.66800947,78.939,78.917,0.92649708]
[1772265359032,0.94196741,78.94,78.918,12.67138042]
[1772265359245,0.94196741,78.94,78.919,0.92649708]
[1772265360820,13.59545716,78.939,78.919,0.92649708]
[1772265362725,0.28432314,78.944,78.921,0.92649708]
[1772265362933,6.41872839,78.97,78.931,0.92649708]
[1772265363131,6.41872839,78.97,78.941,0.92649708]
[1772265363378,0.92187061,78.971,78.941,0.92649708]
[1772265363637,0.92187061,78.969,78.941,0.92649708]
[1772265363832,63.29602675,78.994,78.941,0.92649708]
[1772265363833,0.28432314,78.968,78.941,0.92649708]
[1772265364132,12.6633045,78.969,78.943,0.92649708]
[1772265366118,12.94655802,78.975,78.944,12.66720713]
[1772265366319,13.86030092,78.975,78.945,0.92649708]
[1772265366818,0.91109567,78.969,78.945,0.92649708]
[1772265367150,12.6633573,78.968,78.945,0.92649708]
[1772265367840,12.6633573,78.968,78.947,0.92649708]
[1772265369722,0.903335,78.967,78.947,0.92649708]
[1772265372115,12.6633573,78.968,78.947,0.92649708]
[1772265372841,7.27023804,78.97,78.949,0.8717316]
[1772265373136,0.85150965,78.969,78.949,0.8717316]
[1772265374231,6.41872839,78.97,78.949,0.8717316]
[1772265374433,12.66319695,78.969,78.949,0.8717316]
[1772265376125,0.85150965,78.97,78.949,0.8717316]
[1772265378236,13.5147066,78.969,78.949,0.8717316]
[1772265379845,0.85150965,78.976,78.951,0.8717316]
[1772265380035,1.13583279,78.975,78.951,0.8717316]
[1772265380236,0.85150965,78.974,78.951,0.8717316]
[1772265381725,0.85150965,78.972,78.951,0.8717316]
[1772265383834,0.85150965,78.959,78.931,0.8717316]
[1772265384533,6.41872839,78.96,78.913,0.8717316]
[1772265384534,0.85150965,78.939,78.913,0.8717316]
[1772265384734,6.41872839,78.93,78.913,0.8717316]
[1772265384941,6.41872839,78.93,78.9,12.67427122]
[1772265384942,0.85150965,78.929,78.89,6.41872839]
[1772265385132,0.85150965,78.92,78.89,6.41872839]
[1772265385950,0.85150965,78.92,78.891,12.67571712]
[1772265386348,0.85150965,78.926,78.891,44.36500994]
[1772265387047,0.85150965,78.926,78.892,0.8717316]
[1772265387250,0.85150965,78.939,78.901,0.8717316]
[1772265387455,0.85150965,78.929,78.901,0.8717316]
[1772265388155,0.85150965,78.929,78.9,6.41872839]
[1772265388156,0.85150965,78.929,78.903,0.8717316]
[1772265388337,0.85150965,78.927,78.903,0.8717316]
[1772265389654,0.85150965,78.927,78.905,0.8717316]
[1772265390854,12.66977498,78.928,78.907,0.8717316]
[1772265391362,0.85150965,78.932,78.907,0.8717316]
[1772265393652,0.85150965,78.932,78.88,6.41872839]
[1772265393653,0.85150965,78.939,78.911,0.8717316]
[1772265393854,0.85150965,78.946,78.921,0.8717316]
[1772265394156,0.85150965,78.944,78.921,0.8717316]
[1772265394536,0.28432314,78.948,78.921,0.8717316]
[1772265395157,0.28432314,78.946,78.922,0.8717316]
[1772265396058,12.56053142,78.947,78.922,0.8717316]
[1772265397134,0.85150965,78.947,78.922,0.8717316]
[1772265397361,12.66512152,78.957,78.911,0.8717316]
[1772265397362,0.85150965,78.939,78.911,0.8717316]
[1772265398361,13.51955,78.939,78.911,13.54423606]
[1772265398559,13.51955,78.939,78.912,0.8717316]
[1772265399437,0.85150965,78.939,78.912,0.8717316]
[1772265399642,0.85150965,78.943,78.912,0.8717316]
[1772265400453,0.85150965,78.943,78.913,12.67218329]
[1772265400652,0.85150965,78.943,78.88,6.41872839]
[1772265400653,0.84769934,78.919,78.882,0.85057457]
[1772265401084,0.84769934,78.919,78.891,0.85057457]
[1772265401741,13.53312602,78.929,78.892,12.67555645]
[1772265401941,0.86351156,78.928,78.901,0.87478178]
[1772265402342,0.86351156,78.928,78.892,12.67555645]
[1772265402343,0.86351156,78.936,78.911,0.87478178]
[1772265402983,12.66752982,78.942,78.921,0.87478178]
[1772265404267,12.66752982,78.942,78.91,6.41872839]
[1772265404268,0.86351156,78.942,78.915,0.87478178]
[1772265404653,0.86351156,78.939,78.915,0.87478178]
[1772265405449,0.86351156,78.937,78.915,0.87478178]
[1772265407152,0.86351156,78.937,78.907,0.87478178]
[1772265407656,0.86351156,78.935,78.902,0.87478178]
[1772265410152,0.86351156,78.933,78.902,0.87478178]
[1772265410558,0.86351156,78.933,78.904,0.87478178]
[1772265411366,0.86351156,78.929,78.904,0.87478178]
[1772265412070,0.86351156,78.929,78.906,0.87478178]
[1772265412561,12.66977498,78.928,78.906,0.87478178]
[1772265412760,0.86351156,78.927,78.906,0.87478178]
[1772265414067,12.66917277,78.932,78.906,0.87478178]
[1772265414449,12.66917277,78.932,78.908,0.87478178]
[1772265415066,0.86351156,78.931,78.908,0.87478178]
[1772265416366,0.86351156,78.929,78.908,0.87478178]
[1772265417889,0.86351156,78.929,78.898,0.87478178]
[1772265418181,0.86351156,78.927,78.898,0.87478178]
[1772265418871,0.86351156,78.927,78.899,0.87478178]
[1772265420072,0.86351156,78.925,78.899,0.87478178]
[1772265420454,0.86351156,78.925,78.901,0.87478178]
[1772265421088,0.86351156,78.925,78.861,63.4022973]
[1772265421089,0.86351156,78.925,78.883,0.87478178]
[1772265421294,0.86351156,78.925,78.83,63.21009018]
[1772265421295,0.86351156,78.889,78.863,0.87478178]
[1772265421481,0.86351156,78.879,78.857,0.87478178]
[1772265421657,0.86351156,78.879,78.84,6.6270564]
[1772265421658,0.86351156,78.869,78.84,0.2]
[1772265421853,0.86351156,78.859,78.84,0.2]
[1772265422055,0.86351156,78.858,78.84,0.2]
[1772265422853,0.86351156,78.858,78.83,0.2]
[1772265423061,0.86351156,78.858,78.79,0.1]
[1772265423062,0.86351156,78.839,78.797,12.69073584]
[1772265423290,0.86351156,78.829,78.805,12.68952264]
[1772265423465,0.86351156,78.829,78.8,12.69034515]
[1772265423777,0.86351156,78.829,78.804,12.68964169]
[1772265424180,0.86351156,78.829,78.795,31.72776834]
[1772265424181,0.86351156,78.829,78.795,0.87478178]
[1772265424360,0.86351156,78.819,78.795,0.87478178]
[1772265424778,0.86351156,78.819,78.794,12.69117464]
[1772265425367,12.68584766,78.828,78.79,0.1]
[1772265425368,0.86351156,78.809,78.79,0.1]
[1772265426379,6.61881842,78.836,78.792,0.87478178]
[1772265426380,0.86351156,78.816,78.792,0.87478178]
[1772265427077,0.86351156,78.816,78.791,12.6918049]
[1772265427263,6.4270564,78.84,78.801,0.87478178]
[1772265427466,6.4270564,78.84,78.811,0.87478178]
[1772265427663,6.4270564,78.83,78.811,0.87478178]
[1772265428470,12.68497955,78.834,78.811,0.87478178]
[1772265428976,6.4270564,78.84,78.79,0.1]
[1772265428977,6.4270564,78.82,78.794,0.87478178]
[1772265429162,0.86351156,78.819,78.794,0.87478178]
[1772265429866,44.39427592,78.839,78.777,0.87478178]
[1772265429867,0.86351156,78.799,78.777,0.87478178]
[1772265430268,0.86351156,78.799,78.766,0.87478178]
[1772265430873,0.86351156,78.799,78.767,12.69567204]
[1772265431162,0.86351156,78.799,78.768,0.79620207]
[1772265431687,0.86358138,78.799,78.771,0.79620207]
[1772265432180,12.68970438,78.805,78.728,63.50962563]
[1772265432181,0.86358138,78.789,78.76,0.1]
[1772265432380,44.41357976,78.805,78.76,0.1]
[1772265432381,0.86358138,78.779,78.76,0.1]
[1772265433081,6.4270564,78.77,78.749,0.79620207]
[1772265433289,6.4270564,78.77,78.75,0.89620207]
[1772265433485,0.86358138,78.776,78.751,0.79620207]
[1772265433657,6.4270564,78.77,78.751,0.79620207]
[1772265434475,0.86358138,78.769,78.75,0.1]
[1772265434676,0.86358138,78.769,78.72,31.85810477]
[1772265434677,0.86358138,78.759,78.727,0.79620207]
[1772265434889,6.4270564,78.75,78.727,0.79620207]
[1772265435063,0.86358138,78.749,78.727,0.79620207]
[1772265435265,63.31322645,78.813,78.72,0.1]
[1772265435266,0.86358138,78.774,78.731,0.79620207]
[1772265435466,0.86358138,78.769,78.731,0.79620207]
[1772265435689,0.86358138,78.759,78.724,0.79620207]
[1772265435880,0.86358138,78.749,78.724,0.79620207]
[1772265436189,0.86358138,78.749,78.72,0.1]
[1772265436489,0.86358138,78.759,78.721,0.79620207]
[1772265437191,5.36086188,78.798,78.72,19.23028655]
[1772265437192,0.86358138,78.769,78.731,0.79620207]
[1772265437393,0.86358138,78.759,78.731,0.79620207]
[1772265437572,0.86358138,78.749,78.722,0.79620207]
[1772265437895,0.86358138,78.757,78.722,0.79620207]
[1772265438073,0.86358138,78.759,78.722,0.79620207]
[1772265439892,0.86358138,78.769,78.731,0.79620207]
[1772265440198,0.86358138,78.768,78.731,0.79620207]
[1772265441193,0.86358138,78.776,78.741,0.79620207]
[1772265441590,0.86358138,78.769,78.741,0.79620207]
[1772265441988,0.86358138,78.769,78.743,0.79620207]
[1772265442789,0.86358138,78.767,78.743,0.79620207]
[1772265443086,12.69551086,78.768,78.732,31.75288643]
[1772265443087,0.86358138,78.759,78.733,0.79620207]
[1772265444203,17.26725339,78.76,78.735,0.79620207]
[1772265444399,17.26725339,78.76,78.734,12.70099321]
[1772265444400,12.69367994,78.78,78.741,0.79620207]
[1772265444591,0.86358138,78.779,78.741,0.79620207]
[1772265445799,0.86358138,78.788,78.741,0.79620207]
[1772265445983,0.86358138,78.788,78.751,0.79620207]
[1772265446382,0.86358138,78.788,78.72,17.36725339]
[1772265446383,0.86358138,78.809,78.771,0.79620207]
[1772265446700,0.86358138,78.809,78.781,0.79620207]
[1772265447786,12.68520397,78.832,78.791,0.79620207]
[1772265447787,0.86358138,78.829,78.791,0.79620207]
[1772265448279,17.26725339,78.83,78.79,17.26725339]
[1772265448280,12.68584766,78.828,78.792,12.69164382]
[1772265448476,0.86358138,78.834,78.801,0.79620207]
[1772265448698,0.86358138,78.843,78.811,0.79620207]
[1772265448906,0.2,78.85,78.821,0.79620207]
[1772265449284,17.26725339,78.87,78.831,0.79620207]
[1772265449504,0.86358138,78.869,78.831,0.79620207]
[1772265450589,0.86358138,78.867,78.833,0.79620207]
[1772265451383,18.13083477,78.86,78.833,0.79620207]
[1772265451582,0.86358138,78.859,78.825,0.79620207]
[1772265452501,17.26725339,78.86,78.826,12.68616953]
[1772265452704,17.26725339,78.86,78.827,0.79620207]
[1772265453202,18.13083477,78.86,78.827,0.79620207]
[1772265453406,0.86358138,78.859,78.827,0.79620207]
[1772265454396,13.54444215,78.859,78.827,0.79620207]
[1772265454598,17.26725339,78.85,78.827,0.79620207]
[1772265454789,0.86358138,78.858,78.827,0.79620207]
[1772265455103,0.86358138,78.858,78.828,0.79620207]
[1772265455606,0.86358138,78.858,78.823,0.79620207]
[1772265457004,0.86358138,78.858,78.825,0.79620207]
[1772265457188,12.68118239,78.857,78.825,0.79620207]
[1772265457383,0.86358138,78.859,78.825,0.79620207]
[1772265457612,12.68102158,78.858,78.825,0.79620207]
[1772265457792,13.54460296,78.858,78.825,0.79620207]
[1772265457997,0.86358138,78.857,78.825,0.79620207]
[1772265458303,12.68102158,78.858,78.825,0.79620207]
[1772265458304,18.13083477,78.85,78.825,0.79620207]
[1772265458888,0.86358138,78.865,78.833,0.79620207]
[1772265459193,0.86358138,78.849,78.825,13.48240076]
[1772265459910,0.86358138,78.849,78.826,0.79620207]
[1772265460602,0.80450016,78.857,78.828,0.76198421]
[1772265460803,63.06175343,78.912,78.827,12.6860086]
[1772265460804,29.94638818,78.87,78.841,0.76198421]
[1772265461107,29.94638818,78.87,78.83,17.26725339]
[1772265461108,0.80450016,78.869,78.831,0.76198421]
[1772265461414,5.36086188,78.909,78.827,12.6860086]
[1772265461415,0.80450016,78.903,78.861,0.76198421]
[1772265461587,17.26725339,78.9,78.859,0.76198421]
[1772265461902,0.80127445,78.889,78.852,0.76198421]
[1772265463103,0.80127445,78.887,78.854,0.78705827]
[1772265465212,0.80127445,78.887,78.856,0.78705827]
[1772265466310,0.80127445,78.887,78.858,0.78705827]
[1772265468410,0.80127445,78.895,78.861,0.78705827]
[1772265469612,0.80127445,78.903,78.861,0.78705827]
[1772265469805,17.26725339,78.9,78.861,0.78705827]
[1772265470014,0.80127445,78.899,78.861,0.78705827]
[1772265471216,0.80127445,78.897,78.863,0.78705827]
[1772265471418,0.80127445,78.889,78.863,0.78705827]
[1772265473318,0.80127445,78.889,78.862,12.68037838]
[1772265473319,0.80127445,78.889,78.865,0.78705827]
[1772265474119,0.80127445,78.896,78.865,0.78705827]
[1772265474309,0.80127445,78.889,78.865,0.78705827]
[1772265474900,0.80127445,78.869,78.834,0.78705827]
[1772265475102,17.21540397,78.85,78.827,0.78705827]
[1772265475304,17.21540397,78.85,78.829,0.78705827]
[1772265476304,17.21540397,78.86,78.829,0.78705827]
[1772265476500,18.01667842,78.86,78.829,0.78705827]
[1772265476917,0.80127445,78.859,78.829,0.78705827]
[1772265477505,0.80127445,78.859,78.831,0.78705827]
[1772265477705,18.01667842,78.86,78.831,0.78705827]
[1772265478425,0.80127445,78.859,78.831,0.78705827]
[1772265479606,0.80127445,78.859,78.833,0.78705827]
[1772265481121,0.80127445,78.858,78.833,0.78705827]
[1772265481329,0.80127445,78.858,78.832,12.68520397]
[1772265481730,17.23217535,78.86,78.828,0.78705827]
[1772265481731,0.80127445,78.856,78.828,0.78705827]
[1772265481927,12.68118239,78.857,78.821,0.78705827]
[1772265481928,0.80127445,78.849,78.821,0.78705827]
[1772265482111,0.80127445,78.849,78.815,12.68787315]
[1772265482112,0.80127445,78.839,78.816,0.78705827]
[1772265483720,0.80127445,78.839,78.811,31.72112474]
[1772265483721,0.80127445,78.839,78.818,0.78705827]
[1772265485834,0.80127445,78.839,78.82,0.78705827]
[1772265487233,0.80127445,78.839,78.821,12.68697428]
[1772265487628,0.80127445,78.845,78.821,12.68697428]
[1772265487827,0.80127445,78.845,78.821,13.47403255]
[1772265489824,0.77293652,78.845,78.821,13.47403255]
[1772265491025,0.77293652,78.845,78.822,0.73410926]
[1772265492043,0.74446558,78.852,78.822,0.73410926]
[1772265492247,17.23217535,78.85,78.822,0.73410926]
[1772265493246,6.43369542,78.85,78.824,0.73410926]
[1772265493428,7.178161,78.85,78.824,0.73410926]
[1772265494147,0.74446558,78.849,78.824,0.73410926]
[1772265494571,6.43369542,78.83,78.799,0.73410926]
[1772265494846,0.74446558,78.829,78.799,0.73410926]
[1772265495239,6.43369542,78.83,78.801,0.73410926]
[1772265497140,6.43369542,78.83,78.8,50.84993906]
[1772265497141,6.43369542,78.83,78.803,0.73410926]
[1772265499033,0.74446558,78.829,78.803,0.73410926]
[1772265499446,0.74446558,78.828,78.805,0.73410926]
[1772265500734,0.74446558,78.828,78.807,0.73410926]
[1772265501743,0.74446558,78.819,78.788,0.73410926]
[1772265502536,6.43369542,78.82,78.791,0.73410926]
[1772265502735,6.43369542,78.82,78.793,0.73410926]
[1772265502931,0.74446558,78.819,78.793,0.73410926]
[1772265505054,0.74446558,78.819,78.789,31.73029654]
[1772265505055,0.74446558,78.819,78.795,0.73410926]
[1772265505747,6.43369542,78.82,78.795,0.73410926]
[1772265506454,0.74446558,78.838,78.801,0.73410926]
[1772265506857,0.74446558,78.869,78.831,0.73410926]
[1772265507149,6.43369542,78.87,78.83,6.43369542]
[1772265507150,0.74446558,78.867,78.833,0.73410926]